bitfinex-derivatives/quotes_ETHF0:USTF0_20210406
["timestamp","ask_amount","ask_price","bid_price","bid_amount"]
[1617731668285,32.0,2120.6,2119.6,5.7]
[1617731668484,32.0,2120.6,2120.5,5.92]
[1617731668884,32.0,2120.6,2119.7,5.67]
[1617731669085,32.0,2120.6,2120.5,5.87]
[1617731669485,34.90695,2120.6,2119.2,2.22]
[1617731669786,34.90695,2120.6,2120.5,5.65]
[1617731669987,34.90695,2120.6,2119.5,5.87]
[1617731670194,34.90695,2120.6,2120.5,5.82]
[1617731670396,34.90695,2120.6,2119.6,5.94]
[1617731670689,34.90695,2120.6,2120.5,2.37]
[1617731671090,34.90695,2120.6,2119.7,5.8]
[1617731671291,34.90695,2120.6,2120.5,2.54]
[1617731671489,32.0,2120.6,2120.5,2.54]
[1617731671698,32.0,2120.6,2119.8,5.7]
[1617731671891,32.0,2120.6,2120.5,5.93]
[1617731672289,32.0,2120.6,2119.6,2.90695]
[1617731672595,32.0,2120.6,2119.9,5.65]
[1617731672792,32.0,2120.6,2119.6,2.90695]
[1617731672992,32.0,2120.6,2120.0,5.92]
[1617731673192,32.0,2120.6,2119.0,4.79884862]
[1617731673193,32.0,2120.6,2119.8,5.89]
[1617731673393,32.0,2120.6,2119.7,5.83]
[1617731673594,32.0,2120.6,2119.0,4.79884862]
[1617731673595,2.90695,2119.9,2119.4,2.90695]
[1617731673993,2.90695,2119.9,2119.8,5.73]
[1617731674194,2.90695,2119.9,2119.5,5.43]
[1617731674394,2.90695,2119.9,2119.4,2.90695]
[1617731674595,2.90695,2119.9,2119.5,5.7]
[1617731675497,2.90695,2119.6,2119.5,5.7]
[1617731675698,2.90695,2119.6,2119.5,6.6318]
[1617731675898,2.90695,2119.6,2119.5,5.7]
[1617731683008,32.0,2120.5,2119.5,5.7]
[1617731683306,32.0,2120.5,2119.5,7.7309]
[1617731683707,32.0,2120.5,2119.9,2.90695]
[1617731684113,32.0,2120.5,2120.0,5.82]
[1617731685511,32.0,2120.5,2120.0,7.7479]
[1617731686012,2.90695,2120.1,2120.0,7.7479]
[1617731686512,32.0,2120.5,2120.0,7.7479]
[1617731686714,32.9292,2120.5,2120.0,7.7479]
[1617731686925,2.9292,2120.5,2120.0,7.7479]
[1617731687112,2.0,2120.5,2120.0,7.7479]
[1617731687315,10.0,2120.6,2120.0,7.7479]
[1617731687913,10.0,2120.6,2120.0,5.82]
[1617731688119,40.0,2120.6,2120.0,5.82]
[1617731688316,40.0,2120.6,2120.5,5.65]
[1617731688515,40.0,2120.6,2120.1,5.8]
[1617731688915,40.0,2120.6,2120.5,3.91]
[1617731689115,40.0,2120.6,2120.2,5.69]
[1617731689419,10.0,2120.6,2120.5,5.3934]
[1617731689617,10.0,2120.6,2120.2,1.9326]
[1617731689817,10.0,2120.6,2120.5,2.90695]
[1617731690018,10.0,2120.6,2120.5,8.68695]
[1617731690229,10.0,2120.6,2120.5,2.90695]
[1617731690631,10.0,2120.6,2120.5,8.55695]
[1617731691417,10.0,2120.6,2120.5,10.55695]
[1617731694220,3.7994,2120.6,2120.5,10.55695]
[1617731694720,1.7455,2120.6,2120.5,10.55695]
[1617731695621,12.0,2122.4,2120.5,40.55695]
[1617731695922,12.0,2122.4,2122.3,5.50175]
[1617731696221,12.0,2122.4,2122.3,11.39175]
[1617731697823,14.90695,2122.4,2122.3,11.39175]
[1617731698024,14.90695,2122.4,2122.3,8.4848]
[1617731698223,14.90695,2122.4,2122.3,5.89]
[1617731698725,14.90695,2122.4,2120.9,5.84]
[1617731698927,14.90695,2122.4,2122.3,5.75]
[1617731699125,14.90695,2122.4,2120.8,2.0]
[1617731699325,14.90695,2122.4,2120.9,5.75]
[1617731699525,14.90695,2122.4,2122.3,5.85]
[1617731699725,14.90695,2122.4,2120.8,2.0]
[1617731699927,14.90695,2122.4,2122.0,2.90695]
[1617731700126,14.90695,2122.4,2122.3,5.7]
[1617731700627,14.90695,2122.4,2122.1,5.85]
[1617731700830,14.90695,2122.4,2122.3,5.87]
[1617731701026,14.90695,2122.4,2122.2,5.8]
[1617731701431,14.90695,2122.4,2122.3,5.76]
[1617731701636,14.90695,2122.4,2122.1,5.89]
[1617731701637,14.90695,2122.4,2122.0,2.90695]
[1617731701928,12.0,2122.4,2122.3,5.68]
[1617731702330,12.0,2122.4,2122.1,2.4107]
[1617731702529,12.0,2122.4,2122.3,5.85]
[1617731702929,12.0,2122.4,2122.1,8.2407]
[1617731703128,12.0,2122.4,2122.3,5.76]
[1617731703428,12.0,2122.4,2122.2,5.74]
[1617731703728,12.0,2122.4,2122.3,5.88]
[1617731703928,12.0,2122.4,2122.3,2.90695]
[1617731704330,12.0,2122.4,2122.3,8.68695]
[1617731712238,12.0,2122.4,2122.3,10.68695]
[1617731712439,12.0,2122.4,2122.3,8.68695]
[1617731713039,12.0,2122.4,2122.3,10.68695]
[1617731716443,8.7792,2122.4,2122.3,10.68695]
[1617731716645,6.3963,2122.4,2122.3,10.68695]
[1617731716846,0.8145,2122.4,2122.3,40.68695]
[1617731717245,30.0,2124.4,2122.3,40.68695]
[1617731717949,30.0,2124.4,2124.0,2.90695]
[1617731718445,30.0,2124.4,2124.1,5.78]
[1617731719547,1.1,2124.7,2124.1,5.78]
[1617731719951,32.0,2125.2,2124.1,5.78]
[1617731720152,2.90695,2124.2,2124.1,5.78]
[1617731727978,32.0,2125.3,2124.1,5.78]
[1617731728170,2.90695,2124.5,2124.1,5.78]
[1617731730161,2.90695,2124.5,2124.4,2.90695]
[1617731730662,2.90695,2124.5,2124.4,8.55695]
[1617731732567,32.90695,2124.5,2124.4,8.55695]
[1617731733092,34.90695,2124.5,2124.4,4.65]
[1617731733369,36.93775,2124.5,2121.5,2.0]
[1617731733577,36.93775,2124.5,2124.4,5.68]
[1617731733773,36.93775,2124.5,2122.4,5.67]
[1617731733970,36.93775,2124.5,2121.9,32.1436]
[1617731734184,32.0308,2124.5,2124.4,5.84]
[1617731734387,32.0308,2124.5,2124.0,5.22815]
[1617731734388,30.0,2124.5,2124.0,5.22815]
[1617731734574,30.0,2124.5,2124.1,4.14]
[1617731734772,30.0,2124.5,2124.4,5.12]
[1617731734969,30.0,2124.5,2124.0,5.22815]
[1617731735175,30.0,2124.5,2124.1,5.91]
[1617731735369,30.0,2124.5,2124.4,5.92]
[1617731735669,30.0,2125.3,2124.1,5.67]
[1617731735969,30.0,2125.3,2124.4,5.66]
[1617731736171,30.0,2125.3,2124.5,2.90695]
[1617731736369,30.0,2125.3,2124.5,5.78715]
[1617731736570,30.0,2125.3,2124.5,11.70715]
[1617731736771,30.0,2125.3,2124.5,5.78715]
[1617731737084,30.0,2125.3,2124.6,5.76]
[1617731738072,30.0,2125.3,2124.9,2.90695]
[1617731738680,30.0,2125.3,2125.0,7.9987]
[1617731738889,70.8715,2125.5,2125.0,7.9987]
[1617731738890,30.0,2125.4,2125.0,7.9987]
[1617731740079,32.90695,2125.4,2125.3,2.90695]
[1617731740579,32.90695,2125.4,2125.3,8.70695]
[1617731741882,34.90695,2125.4,2125.3,5.8]
[1617731742286,34.90695,2125.4,2124.6,8.73695]
[1617731742493,34.90695,2125.4,2124.0,2.3212]
[1617731742494,34.90695,2125.4,2124.7,2.75]
[1617731742787,34.90695,2125.4,2125.3,5.71]
[1617731742985,34.90695,2125.4,2123.8,2.6011]
[1617731743285,34.90695,2125.4,2125.3,5.16]
[1617731743485,34.90695,2125.4,2123.2,2.0858]
[1617731743787,36.77225,2125.4,2125.3,5.07]
[1617731743990,36.77225,2125.4,2123.3,0.3]
[1617731744189,36.77225,2125.4,2125.0,5.42]
[1617731744387,36.77225,2125.4,2125.3,5.78]
[1617731744587,36.77225,2125.4,2124.0,3.17]
[1617731744791,36.77225,2125.4,2125.1,5.35]
[1617731744995,36.77225,2125.4,2125.3,5.7]
[1617731744996,34.90695,2125.4,2125.3,5.7]
[1617731745305,34.90695,2125.4,2124.0,4.86]
[1617731745490,37.45305,2125.4,2125.3,5.53]
[1617731745801,37.45305,2125.4,2125.3,3.5065]
[1617731746001,37.45305,2125.4,2125.3,3.154]
[1617731746203,37.45305,2125.4,2122.5,0.9319]
[1617731746204,37.45305,2125.4,2123.6,2.90695]
[1617731746891,37.45305,2125.4,2123.7,5.79]
[1617731748098,2.90695,2123.8,2123.7,5.79]
[1617731748291,32.90695,2123.8,2123.7,5.79]
[1617731748492,32.90695,2123.8,2123.3,2.90695]
[1617731748493,32.90695,2123.8,2123.4,5.91]
[1617731748792,32.90695,2123.8,2123.7,5.88]
[1617731749292,32.90695,2123.8,2123.4,5.8]
[1617731749503,32.90695,2123.8,2123.7,5.7]
[1617731749692,32.90695,2123.8,2123.4,5.75]
[1617731749892,2.0,2123.7,2123.4,5.75]
[1617731750092,2.90695,2123.5,2123.3,2.90695]
[1617731750292,2.90695,2123.5,2123.4,5.86]
[1617731754197,32.90695,2123.5,2123.4,5.86]
[1617731754899,34.90695,2123.5,2123.4,5.86]
[1617731755097,37.68015,2123.5,2121.5,5.67]
[1617731755297,37.68015,2123.5,2123.4,5.88]
[1617731755697,37.68015,2123.5,2121.5,5.86]
[1617731756000,37.68015,2123.5,2123.4,5.85]
[1617731756300,37.68015,2123.5,2121.4,2.0]
[1617731756301,37.68015,2123.5,2122.3,2.90695]
[1617731756500,37.68015,2123.5,2123.4,5.82]
[1617731756700,37.68015,2123.5,2123.4,0.0001]
[1617731756900,37.68015,2123.5,2122.4,5.89]
[1617731757101,37.68015,2123.5,2122.3,2.90695]
[1617731757102,37.68015,2123.5,2123.4,5.73]
[1617731757502,37.68015,2123.5,2122.4,5.82]
[1617731757800,37.68015,2123.5,2123.4,5.67]
[1617731758000,37.68015,2123.5,2122.4,5.64]
[1617731758202,34.7732,2123.5,2122.6,2.90695]
[1617731758400,34.7732,2123.5,2123.4,5.68]
[1617731758601,32.0,2123.5,2122.7,0.73]
[1617731758902,2.0,2123.3,2121.4,2.2399]
[1617731759100,30.0,2123.2,2120.7,2.9347]
[1617731759303,2.0,2123.1,2122.8,5.71]
[1617731759501,30.0,2123.0,2121.4,2.2755]
[1617731759702,30.0,2123.0,2121.7,5.77]
[1617731759903,30.0,2123.0,2122.9,5.8]
[1617731760106,30.0,2123.0,2121.4,2.2755]
[1617731760303,34.90695,2123.0,2122.3,2.90695]
[1617731760503,34.90695,2123.0,2122.9,5.63]
[1617731760703,34.90695,2123.0,2122.4,0.35]
[1617731761104,34.90695,2123.0,2122.9,5.68]
[1617731761304,34.90695,2123.0,2122.4,5.84]
[1617731761705,34.90695,2123.0,2122.9,5.66]
[1617731761905,34.90695,2123.0,2122.4,5.86]
[1617731762306,2.90695,2122.5,2122.3,2.90695]
[1617731762509,2.90695,2122.5,2122.4,5.9]
[1617731764511,32.90695,2122.5,2122.4,5.9]
[1617731765112,32.90695,2122.5,2122.0,5.83]
[1617731765315,32.90695,2122.5,2122.4,5.84]
[1617731765513,32.90695,2122.5,2121.1,2.553]
[1617731765715,32.90695,2122.5,2121.2,5.71]
[1617731765915,32.90695,2122.5,2122.4,5.73]
[1617731766214,32.90695,2122.5,2122.3,2.90695]
[1617731766615,32.90695,2122.5,2122.4,5.84]
[1617731766915,32.90695,2122.5,2122.3,2.90695]
[1617731767115,32.90695,2122.5,2122.4,5.83]
[1617731767716,32.90695,2122.5,2122.4,8.2835]
[1617731768516,2.90695,2122.5,2122.4,8.2835]
[1617731769920,2.90695,2122.5,2122.4,5.83]
[1617731772321,2.90695,2122.5,2122.1,8.56695]
[1617731772722,2.90695,2122.5,2122.4,5.69]
[1617731773123,2.90695,2122.5,2122.2,5.87]
[1617731773327,2.90695,2122.5,2122.4,5.82]
[1617731773725,2.90695,2122.5,2122.2,5.73]
[1617731774025,2.90695,2122.5,2122.4,5.81]
[1617731774223,2.90695,2122.5,2122.1,2.90695]
[1617731774427,32.90695,2122.5,2122.2,5.88]
[1617731775428,32.90695,2122.5,2121.2,5.77]
[1617731775625,32.90695,2122.5,2122.3,5.53]
[1617731775829,32.90695,2122.5,2121.3,5.69]
[1617731776029,32.90695,2122.5,2121.0,5.88]
[1617731776227,32.90695,2122.5,2120.9,2.0]
[1617731776427,30.0,2122.5,2122.0,2.90695]
[1617731776829,30.0,2122.5,2122.1,5.67]
[1617731777629,30.0,2122.4,2122.1,5.67]
[1617731778529,30.0,2122.1,2121.6,8.56695]
[1617731778732,30.0,2122.1,2121.6,2.90695]
[1617731778935,30.0,2122.1,2121.4,4.77623264]
[1617731779235,30.0,2122.1,2121.7,5.67]
[1617731779433,30.0,2122.1,2121.6,5.71]
[1617731779733,30.0,2122.1,2121.8,5.3]
[1617731780136,30.0,2122.1,2121.7,5.66]
[1617731780334,30.0,2122.1,2121.9,5.0]
[1617731780734,30.0,2122.1,2121.8,5.8]
[1617731780936,30.0,2122.1,2121.5,4.05]
[1617731781335,30.0,2122.1,2121.9,5.89]
[1617731781537,30.0,2122.6,2121.5,5.91]
[1617731781736,30.0,2122.0,2121.5,5.91]
[1617731782538,32.90695,2121.6,2121.5,5.91]
[1617731783240,32.90695,2121.6,2121.2,5.79]
[1617731783540,32.90695,2121.6,2121.2,5.91]
[1617731783939,32.90695,2121.6,2121.1,5.81]
[1617731784345,32.90695,2121.6,2121.3,5.67]
[1617731784541,32.90695,2121.6,2121.1,5.93]
[1617731784948,32.90695,2121.6,2121.4,5.53]
[1617731785149,32.90695,2121.6,2121.1,5.78]
[1617731785648,32.90695,2121.6,2121.5,5.7]
[1617731785945,32.90695,2121.6,2121.1,5.66]
[1617731786444,2.90695,2121.2,2121.1,5.66]
[1617731786645,32.90695,2121.2,2121.1,5.66]
[1617731787248,32.90695,2121.2,2120.7,5.88]
[1617731787746,32.90695,2121.2,2119.9,6.91250182]
[1617731787747,32.90695,2121.2,2121.1,5.72]
[1617731788047,32.90695,2121.2,2120.8,5.61]
[1617731788247,32.90695,2121.2,2121.1,5.31]
[1617731788455,32.90695,2121.2,2120.9,3.46]
[1617731788647,35.22705,2121.2,2120.9,3.46]
[1617731788863,35.22705,2121.2,2121.1,4.39]
[1617731789053,35.22705,2121.2,2120.9,5.85]
[1617731789486,35.22705,2121.2,2121.1,3.65]
[1617731789680,35.22705,2121.2,2121.0,5.88]
[1617731789873,35.22705,2121.2,2120.9,5.76]
[1617731790061,35.22705,2121.2,2121.1,3.9]
[1617731790251,37.22705,2121.2,2121.0,5.93]
[1617731790755,37.22705,2121.2,2121.1,3.93]
[1617731790953,37.22705,2121.2,2120.4,0.45]
[1617731791252,37.22705,2121.2,2121.1,5.87]
[1617731791656,37.22705,2121.2,2120.4,5.85]
[1617731792554,2.90695,2120.5,2120.4,5.85]
[1617731793956,30.0,2121.7,2120.4,5.85]
[1617731794280,32.0,2121.6,2120.4,8.0848]
[1617731794470,32.0,2121.6,2121.2,2.90695]
[1617731794662,32.0,2121.6,2121.2,5.37255]
[1617731795059,32.0,2121.6,2121.3,5.78]
[1617731796664,2.90695,2121.4,2121.3,5.78]
[1617731797262,2.90695,2121.4,2120.4,2.2348]
[1617731797263,2.90695,2121.4,2120.5,5.65]
[1617731798465,30.0,2121.5,2121.4,2.90695]
[1617731798665,30.0,2121.5,2121.4,2.6958]
[1617731799065,30.0,2121.5,2121.4,8.4358]
[1617731800465,30.0,2121.5,2121.4,11.34275]
[1617731800665,2.90695,2121.6,2121.4,11.34275]
[1617731803268,14.0,2121.5,2121.4,11.34275]
[1617731808680,14.0,2121.5,2121.4,8.4358]
[1617731809876,14.949,2121.5,2121.4,8.4358]
[1617731810079,14.0,2121.5,2121.4,8.4358]
[1617731812782,14.0,2121.5,2121.4,5.74]
[1617731813183,14.0,2121.5,2120.5,5.94]
[1617731813584,14.9482,2121.5,2121.4,5.91]
[1617731813784,14.0,2121.5,2120.6,5.82]
[1617731814284,14.0,2121.5,2121.4,5.68]
[1617731814490,14.0,2121.5,2120.7,5.76]
[1617731814686,14.0,2121.5,2121.4,5.85]
[1617731815087,14.0,2121.5,2121.1,2.83]
[1617731815301,14.0,2121.5,2121.4,5.83]
[1617731815703,44.0,2121.5,2121.1,5.85]
[1617731815988,44.0,2121.5,2121.4,5.67]
[1617731816187,44.0,2121.5,2121.2,5.77]
[1617731816691,44.0,2121.5,2121.4,5.51]
[1617731816889,44.0,2121.5,2121.3,6.6644]
[1617731817089,44.0,2121.5,2121.4,5.14]
[1617731817615,44.0,2121.5,2120.9,5.93]
[1617731817790,44.0,2121.5,2121.4,5.84]
[1617731818089,44.0,2121.5,2120.8,2.90695]
[1617731818090,44.0,2121.5,2120.9,5.71]
[1617731818692,2.90695,2121.0,2120.9,5.71]
[1617731820197,2.90695,2121.0,2120.0,5.86]
[1617731820595,2.90695,2121.0,2120.9,5.65]
[1617731820895,44.0,2121.5,2120.7,2.90695]
[1617731821196,44.0,2121.5,2120.9,5.85]
[1617731821397,44.0,2121.5,2120.8,5.66]
[1617731821595,44.0,2121.5,2120.7,2.90695]
[1617731821896,44.0,2121.5,2121.0,5.73]
[1617731822098,44.0,2121.5,2120.8,5.74]
[1617731822099,44.0,2121.5,2120.7,2.90695]
[1617731822298,44.0,2121.5,2121.1,5.9]
[1617731822611,44.0,2121.5,2120.7,2.90695]
[1617731822612,44.0,2121.5,2120.8,5.65]
[1617731822797,2.90695,2121.2,2119.8,4.77537976]
[1617731823197,2.90695,2121.2,2120.8,5.93]
[1617731823496,2.90695,2121.2,2119.9,3.27]
[1617731823697,30.0,2121.1,2120.9,5.88]
[1617731823997,30.0,2121.1,2120.0,5.94]
[1617731824197,30.0,2121.1,2119.8,5.88]
[1617731824396,30.0,2121.1,2121.0,5.83]
[1617731824596,30.0,2121.1,2120.1,5.83]
[1617731824806,30.0,2121.1,2120.6,2.90695]
[1617731824998,30.0,2121.1,2121.0,5.69]
[1617731825204,30.0,2121.1,2119.7,6.77644835]
[1617731825205,30.0,2121.1,2120.7,0.35]
[1617731825599,30.0,2121.1,2121.0,5.72]
[1617731825799,30.0,2121.1,2120.8,5.89]
[1617731826199,30.0,2121.1,2121.0,5.84]
[1617731826399,30.0,2121.1,2120.9,5.42]
[1617731826799,30.0,2121.1,2121.0,5.88]
[1617731826999,30.0,2121.1,2120.3,2.90695]
[1617731827200,30.0,2121.1,2120.4,0.26]
[1617731828902,30.0,2121.1,2120.6,2.90695]
[1617731829104,32.0,2121.4,2120.6,2.90695]
[1617731829304,32.0,2121.4,2120.7,5.91]
[1617731830706,2.90695,2120.8,2120.7,5.91]
[1617731830906,32.90695,2120.8,2120.7,5.91]
[1617731831906,34.90695,2120.8,2119.7,5.75]
[1617731832106,34.90695,2120.8,2120.7,5.68]
[1617731832306,34.90695,2120.8,2119.7,5.79]
[1617731832705,34.90695,2120.8,2119.6,2.0]
[1617731832706,32.0,2120.8,2120.7,5.7]
[1617731833005,32.0,2120.8,2120.3,2.90695]
[1617731833208,32.0,2120.8,2120.4,2.96]
[1617731833407,32.0,2120.8,2120.7,5.88]
[1617731833610,32.0,2120.8,2120.3,2.90695]
[1617731833807,32.0,2120.8,2120.4,5.93]
[1617731834108,30.0,2120.7,2120.4,5.93]
[1617731834308,32.0,2120.7,2120.4,5.93]
[1617731834708,2.90695,2120.5,2120.4,5.93]
[1617731837411,30.0,2121.2,2120.4,5.93]
[1617731837611,30.0,2121.2,2120.4,8.1588]
[1617731838714,30.0,2121.2,2120.9,2.90695]
[1617731839117,30.0,2121.2,2121.0,5.79]
[1617731840421,30.0,2121.4,2121.0,5.79]
[1617731840823,2.90695,2121.1,2121.0,5.79]
[1617731844127,14.0,2121.5,2120.3,5.84]
[1617731844527,14.0,2121.5,2121.0,5.52]
[1617731844729,14.0,2121.5,2121.0,2.0352]
[1617731845027,14.0,2121.5,2121.4,2.90695]
[1617731845227,14.0,2121.5,2121.4,3.32695]
[1617731856345,14.9432,2121.5,2121.4,3.32695]
[1617731856544,14.0,2121.5,2121.4,3.32695]
[1617731871062,14.0,2121.5,2121.4,8.11818093]
[1617731872165,14.0,2121.5,2121.4,3.32695]
[1617731883675,14.0,2121.5,2121.4,5.32695]
[1617731887278,14.0,2121.5,2121.4,12.23179474]
[1617731888578,14.0,2121.5,2121.4,42.23179474]
[1617731889384,14.0,2121.5,2121.4,42.44992128]
[1617731889680,14.0,2121.5,2121.4,42.23179474]
[1617731889981,14.0,2121.5,2121.4,42.44996082]
[1617731890789,14.0,2121.5,2121.4,35.54511608]
[1617731892582,14.0,2121.5,2121.4,42.44797222]
[1617731892982,14.0,2121.5,2121.4,35.54511608]
[1617731896287,13.296,2121.5,2121.4,35.54511608]
[1617731897189,12.6287,2121.5,2121.4,35.54511608]
[1617731897789,12.5428,2121.5,2121.4,35.54511608]
[1617731898609,12.5428,2121.5,2121.4,42.44828901]
[1617731899291,12.5428,2121.5,2121.4,35.54511608]
[1617731907000,10.1939,2121.5,2121.4,35.54511608]
[1617731909704,11.1295,2121.5,2121.4,35.54511608]
[1617731910014,10.1939,2121.5,2121.4,35.54511608]
[1617731912709,8.7837,2121.5,2121.4,35.54511608]
[1617731913107,8.7837,2121.5,2121.4,35.32695]
[1617731914810,8.7837,2121.5,2121.4,35.54502619]
[1617731915715,8.7837,2121.5,2121.4,35.32695]
[1617731916514,8.7837,2121.5,2121.4,35.54495861]
[1617731920415,8.7837,2121.5,2121.4,35.32695]
[1617731920616,8.7837,2121.5,2121.4,41.15819917]
[1617731921416,8.7837,2121.5,2121.4,35.32695]
[1617731921618,8.7837,2121.5,2121.4,41.16017014]
[1617731921917,8.7837,2121.5,2121.4,41.378251]
[1617731922117,8.7837,2121.5,2121.4,35.54503086]
[1617731922316,8.7837,2121.5,2121.4,35.32695]
[1617731922517,8.7837,2121.5,2121.4,35.54492481]
[1617731924518,8.3844,2121.5,2121.4,35.54492481]
[1617731925018,8.3844,2121.5,2121.4,42.42740833]
[1617731925918,8.3844,2121.5,2121.4,35.54492481]
[1617731926117,8.3844,2121.5,2121.4,42.4240011]
[1617731927118,6.6251,2121.5,2121.4,42.4240011]
[1617731927518,5.966,2121.5,2121.4,42.4240011]
[1617731929121,5.966,2121.5,2121.4,35.54492481]
[1617731930723,5.8943,2121.5,2121.4,35.54492481]
[1617731931327,5.4975,2121.5,2121.4,35.54492481]
[1617731931524,5.4435,2121.5,2121.4,35.54492481]
[1617731932526,5.3811,2121.5,2121.4,35.54492481]
[1617731932927,5.0383,2121.5,2121.4,35.54492481]
[1617731933530,2.9647,2121.5,2121.4,35.54492481]
[1617731933730,2.0287,2121.5,2121.4,35.54492481]
[1617731939238,2.0287,2121.5,2121.4,43.48880199]
[1617731939640,1.0691,2121.5,2121.4,35.54492481]
[1617731939838,13.0,2123.5,2121.4,43.48705083]
[1617731940240,13.0,2123.5,2122.5,4.76465566]
[1617731940439,13.0,2123.5,2122.5,8.46075566]
[1617731940739,13.0,2123.5,2122.6,5.75]
[1617731941939,13.0,2123.5,2123.4,2.90695]
[1617731942341,13.0,2123.5,2123.4,10.81175]
[1617731952556,13.0,2123.5,2123.4,8.58695]
[1617731954668,13.0,2123.5,2123.4,42.21895]
[1617731954960,13.0,2123.5,2123.4,41.28665]
[1617731957661,13.0,2123.5,2123.4,38.58695]
[1617731958062,13.0,2123.5,2123.4,35.68]
[1617731958362,12.3031,2123.5,2123.4,35.68]
[1617731958562,12.3031,2123.5,2123.4,38.58695]
[1617731961071,12.3031,2123.5,2123.4,8.58695]
[1617731961371,12.1891,2123.5,2123.4,8.58695]
[1617731966778,14.761,2123.5,2123.4,8.58695]
[1617731967781,12.1891,2123.5,2123.4,8.58695]
[1617731967981,12.1891,2123.5,2123.4,10.69395]
[1617731969380,12.1891,2123.5,2123.4,8.58695]
[1617731979893,12.1891,2123.5,2123.4,9.54115]
[1617731980295,12.1891,2123.5,2123.4,8.58695]
[1617731982297,14.1891,2123.5,2123.4,8.58695]
[1617731986005,24.1891,2123.5,2123.4,8.58695]
[1617731986609,26.027,2123.5,2123.4,8.58695]
[1617731988207,22.1891,2123.5,2123.4,8.58695]
[1617731988909,24.1891,2123.5,2123.4,8.58695]
[1617731990725,27.09605,2123.5,2123.4,8.58695]
[1617731995419,30.08135,2123.5,2123.4,5.68]
[1617731995621,60.08135,2123.5,2123.4,5.68]
[1617731995825,60.08135,2123.5,2122.5,5.67]
[1617731996229,60.08135,2123.5,2123.4,5.91]
[1617731996426,60.08135,2123.5,2122.3,5.78]
[1617731996726,57.1744,2123.5,2123.4,5.83]
[1617731997125,57.1744,2123.5,2123.0,3.59]
[1617731997333,57.1744,2123.5,2123.4,5.54]
[1617731997734,57.1744,2123.5,2123.0,5.89]
[1617731997930,57.1744,2123.5,2123.4,5.67]
[1617731998227,57.1744,2123.5,2121.9,4.76154889]
[1617731998428,57.1744,2123.5,2123.1,5.86]
[1617731998634,57.1744,2123.5,2121.9,5.09154889]
[1617731998635,57.1744,2123.5,2122.0,5.34]
[1617731998829,2.90695,2123.0,2122.5,2.90695]
[1617731999030,2.0,2122.9,2122.5,2.90695]
[1617731999232,2.0,2122.9,2122.6,0.01]
[1617732000730,2.90695,2122.7,2122.6,0.01]
[1617732001543,4.90695,2122.7,2122.6,0.01]
[1617732002036,2.90695,2122.7,2122.6,0.01]
[1617732002954,2.0,2123.4,2122.6,0.01]
[1617732004832,2.0,2123.4,2123.3,2.90695]
[1617732005033,2.0,2123.4,2123.3,8.76695]
[1617732008133,22.1891,2123.5,2123.3,10.70015]
[1617732008735,22.1891,2123.5,2123.3,41.65375]
[1617732009036,22.1891,2123.5,2123.3,40.70015]
[1617732009546,2.0,2125.6,2123.3,40.70015]
[1617732009747,2.0,2125.6,2123.3,30.92025]
[1617732009946,2.0,2125.6,2123.5,28.70015]
[1617732010136,2.0,2125.6,2123.5,30.70015]
[1617732010537,2.0,2125.6,2123.6,5.84]
[1617732010748,2.0,2125.6,2124.8,2.90695]
[1617732010947,2.0,2125.6,2124.8,5.86785]
[1617732011144,2.0,2125.6,2124.9,5.75]
[1617732012439,2.0,2126.4,2124.9,5.75]
[1617732012640,2.0,2126.2,2124.9,5.75]
[1617732012839,2.90695,2125.0,2124.9,5.75]
[1617732023756,2.0,2125.8,2124.9,5.75]
[1617732024656,2.0,2126.0,2124.9,5.75]
[1617732025158,2.0,2126.0,2125.4,2.90695]
[1617732025356,2.0,2126.0,2125.5,5.74]
[1617732026157,32.0,2126.0,2125.5,5.74]
[1617732026878,2.0,2126.0,2125.5,5.74]
[1617732027066,2.90695,2125.6,2125.5,5.74]
[1617732027760,4.90695,2125.6,2125.5,5.74]
[1617732028959,2.90695,2125.6,2125.5,5.74]
[1617732029358,2.90695,2125.6,2125.5,0.0001]
[1617732034869,3.84935,2125.6,2125.5,0.0001]
[1617732035066,2.90695,2125.6,2125.5,0.0001]
[1617732036465,3.85155,2125.6,2125.5,0.0001]
[1617732036967,2.90695,2125.6,2125.5,0.0001]
[1617732039872,3.84635,2125.6,2125.5,0.0001]
[1617732041074,2.90695,2125.6,2125.5,0.0001]
[1617732041975,3.85565,2125.6,2125.5,0.0001]
[1617732043880,2.90695,2125.6,2125.5,0.0001]